{"text_format":"1","workbook":"xlsx","n_sheets":8,"sheets":["Свод","Справочник","Проект 1","Проект 2","Проект 3","Проект 4","Проект 5","Проект 5 (2)"],"not_rendered":{"charts":0,"images":0,"macros":1,"external_links":0,"defined_names":4,"comments":0,"pivot_tables":0},"unopened":[],"bounds":{"document_bytes":16777216,"sheet_cells":100000,"rows_first":2000,"rows_last":500,"rows_between":2000,"halvings":0,"cell_chars":16384,"cell_head_chars":4096},"cells_cut":0,"cells_raw":0,"read":"whole","date_system":"1900"}

{"sheet":"Свод","index":0,"n_rows":26,"n_cols":96,"rows_kept":26,"cut":false,"hidden":false,"merged":[]}
["Статьи бюджета","ВСЕГО","Республика Адыгея","Республика Башкортостан","Республика Бурятия","Республика Алтай","Республика Дагестан","Республика Ингушетия","Кабардино-Балкарская Республика","Республика Калмыкия","Республика Карачаево-Черкессия","Республика Карелия","Республика Коми","Республика Марий Эл","Республика Мордовия","Республика Саха (Якутия)","Республика Северная Осетия-Алания","Республика Татарстан","Республика Тыва","Удмуртская Республика","Республика Хакасия","Чеченская республика","Чувашская Республика","Алтайский край","Краснодарский край","Красноярский край","Приморский край","Ставропольский край","Хабаровский край","Амурская область","Архангельская область","Астраханская область","Белгородская область","Брянская область","Владимирская область","Волгоградская область","Вологодская область","Воронежская область","Ивановская область","Иркутская область","Калининградская область","Калужская область","Камчатский край","Камчатская область","Кемеровская область","Кировская область","Костромская область","Курганская область","Курская область","Ленинградская область","Липецкая область","Магаданская область","Московская область","Мурманская область","Нижегородская область","Новгородская область","Новосибирская область","Омская область","Оренбургская область","Орловская область","Пензенская область","Пермский край","Пермская область","Псковская область","Ростовская область","Рязанская область","Самарская область","Саратовская область","Сахалинская область","Свердловская область","Смоленская область","Тамбовская область","Тверская область","Томская область","Тульская область","Тюменская область","Ульяновская область","Челябинская область","Забайкальский край","Читинская область","Ярославская область","г. Москва","г. Санкт-Петербург","Еврейская автономная область","Агинский Бурятский автономный округ","Коми-Пермяцкий автономный округ","Корякский автономный округ","Ненецкий автономный округ","Таймырский (Долгано-Ненецкий) автономный округ","Усть-Ордынский Бурятский автономный округ","Ханты-Мансийский автономный округ - Югра","Чукотский автономный округ","Эвенкийский автономный округ","Ямало-Ненецкий автономный округ","Чеченская Республика","Запорожская область"]
["Выручка ИТОГ",{"$f":"B3+B4","v":2},{"$f":"'Проект 5'!F4","v":0},{"$f":"'Проект 1'!B4","v":2},null,null,{"$f":"'Проект 2'!B4+'Проект 4'!E4+'Проект 5'!C4","v":2},{"$f":"'Проект 3'!C4+'Проект 5'!B4","v":2},{"$f":"'Проект 1'!C4+'Проект 2'!F4+'Проект 5'!E4","v":0},{"$f":"'Проект 1'!D4","v":0},null,null,null,null,null,null,null,null,null,null,null,null,null,null,null,null,null,null,null,null,null,null,null,null,null,null,null,null,{"$f":"'Проект 1'!F4","v":0},{"$f":"'Проект 5'!D4","v":0},null,null,null,null,null,null,null,null,null,null,null,null,{"$f":"'Проект 2'!D4","v":0},{"$f":"'Проект 3'!F4","v":0},null,{"$f":"'Проект 3'!B4","v":2},null,null,{"$f":"'Проект 4'!F4","v":0},null,{"$f":"'Проект 3'!E4","v":0},null,null,null,null,null,null,null,null,null,null,{"$f":"'Проект 4'!D4","v":0},{"$f":"'Проект 1'!E4","v":0},null,null,null,null,null,null,{"$f":"'Проект 4'!C4","v":0},{"$f":"'Проект 3'!D4","v":0},null,{"$f":"'Проект 2'!C4","v":0},null,null,{"$f":"'Проект 2'!E4","v":0},null,null,null,{"$f":"'Проект 4'!B4","v":2},null,null,null,null,null,{"$f":"'Проект 5 (2)'!B4","v":2}]
["Доходы от продажи товаров",1,{"$f":"'Проект 5'!F5","v":0},{"$f":"'Проект 1'!B5","v":1},null,null,{"$f":"'Проект 2'!B5+'Проект 4'!E5+'Проект 5'!C5","v":1},{"$f":"'Проект 3'!C5+'Проект 5'!B5","v":1},{"$f":"'Проект 1'!C5+'Проект 2'!F5+'Проект 5'!E5","v":0},{"$f":"'Проект 1'!D5","v":0},null,null,null,null,null,null,null,null,null,null,null,null,null,null,null,null,null,null,null,null,null,null,null,null,null,null,null,null,{"$f":"'Проект 1'!F5","v":0},{"$f":"'Проект 5'!D5","v":0},null,null,null,null,null,null,null,null,null,null,null,null,{"$f":"'Проект 2'!D5","v":0},{"$f":"'Проект 3'!F5","v":0},null,{"$f":"'Проект 3'!B5","v":1},null,null,{"$f":"'Проект 4'!F5","v":0},null,{"$f":"'Проект 3'!E5","v":0},null,null,null,null,null,null,null,null,null,null,{"$f":"'Проект 4'!D5","v":0},{"$f":"'Проект 1'!E5","v":0},null,null,null,null,null,null,{"$f":"'Проект 4'!C5","v":0},{"$f":"'Проект 3'!D5","v":0},null,{"$f":"'Проект 2'!C5","v":0},null,null,{"$f":"'Проект 2'!E5","v":0},null,null,null,{"$f":"'Проект 4'!B5","v":1},null,null,null,null,null,{"$f":"'Проект 5 (2)'!B5","v":1}]
["Доходы от продажи услуг",1,{"$f":"'Проект 5'!F6","v":0},{"$f":"'Проект 1'!B6","v":1},null,null,{"$f":"'Проект 2'!B6+'Проект 4'!E6+'Проект 5'!C6","v":1},{"$f":"'Проект 3'!C6+'Проект 5'!B6","v":1},{"$f":"'Проект 1'!C6+'Проект 2'!F6+'Проект 5'!E6","v":0},{"$f":"'Проект 1'!D6","v":0},null,null,null,null,null,null,null,null,null,null,null,null,null,null,null,null,null,null,null,null,null,null,null,null,null,null,null,null,{"$f":"'Проект 1'!F6","v":0},{"$f":"'Проект 5'!D6","v":0},null,null,null,null,null,null,null,null,null,null,null,null,{"$f":"'Проект 2'!D6","v":0},{"$f":"'Проект 3'!F6","v":0},null,{"$f":"'Проект 3'!B6","v":1},null,null,{"$f":"'Проект 4'!F6","v":0},null,{"$f":"'Проект 3'!E6","v":0},null,null,null,null,null,null,null,null,null,null,{"$f":"'Проект 4'!D6","v":0},{"$f":"'Проект 1'!E6","v":0},null,null,null,null,null,null,{"$f":"'Проект 4'!C6","v":0},{"$f":"'Проект 3'!D6","v":0},null,{"$f":"'Проект 2'!C6","v":0},null,null,{"$f":"'Проект 2'!E6","v":0},null,null,null,{"$f":"'Проект 4'!B6","v":1},null,null,null,null,null,{"$f":"'Проект 5 (2)'!B6","v":1}]
["Расходы ИТОГ",{"$f":"B6+B9+B12+B21","v":18},{"$f":"'Проект 5'!F7","v":0},{"$f":"'Проект 1'!B7","v":18},null,null,{"$f":"'Проект 2'!B7+'Проект 4'!E7+'Проект 5'!C7","v":18},{"$f":"'Проект 3'!C7+'Проект 5'!B7","v":18},{"$f":"'Проект 1'!C7+'Проект 2'!F7+'Проект 5'!E7","v":0},{"$f":"'Проект 1'!D7","v":0},null,null,null,null,null,null,null,null,null,null,null,null,null,null,null,null,null,null,null,null,null,null,null,null,null,null,null,null,{"$f":"'Проект 1'!F7","v":0},{"$f":"'Проект 5'!D7","v":0},null,null,null,null,null,null,null,null,null,null,null,null,{"$f":"'Проект 2'!D7","v":0},{"$f":"'Проект 3'!F7","v":0},null,{"$f":"'Проект 3'!B7","v":18},null,null,{"$f":"'Проект 4'!F7","v":0},null,{"$f":"'Проект 3'!E7","v":0},null,null,null,null,null,null,null,null,null,null,{"$f":"'Проект 4'!D7","v":0},{"$f":"'Проект 1'!E7","v":0},null,null,null,null,null,null,{"$f":"'Проект 4'!C7","v":0},{"$f":"'Проект 3'!D7","v":0},null,{"$f":"'Проект 2'!C7","v":0},null,null,{"$f":"'Проект 2'!E7","v":0},null,null,null,{"$f":"'Проект 4'!B7","v":18},null,null,null,null,null,{"$f":"'Проект 5 (2)'!B7","v":18}]
["Производственные расходы",{"$f":"B7+B9","v":3},{"$f":"'Проект 5'!F8","v":0},{"$f":"'Проект 1'!B8","v":3},null,null,{"$f":"'Проект 2'!B8+'Проект 4'!E8+'Проект 5'!C8","v":3},{"$f":"'Проект 3'!C8+'Проект 5'!B8","v":3},{"$f":"'Проект 1'!C8+'Проект 2'!F8+'Проект 5'!E8","v":0},{"$f":"'Проект 1'!D8","v":0},null,null,null,null,null,null,null,null,null,null,null,null,null,null,null,null,null,null,null,null,null,null,null,null,null,null,null,null,{"$f":"'Проект 1'!F8","v":0},{"$f":"'Проект 5'!D8","v":0},null,null,null,null,null,null,null,null,null,null,null,null,{"$f":"'Проект 2'!D8","v":0},{"$f":"'Проект 3'!F8","v":0},null,{"$f":"'Проект 3'!B8","v":3},null,null,{"$f":"'Проект 4'!F8","v":0},null,{"$f":"'Проект 3'!E8","v":0},null,null,null,null,null,null,null,null,null,null,{"$f":"'Проект 4'!D8","v":0},{"$f":"'Проект 1'!E8","v":0},null,null,null,null,null,null,{"$f":"'Проект 4'!C8","v":0},{"$f":"'Проект 3'!D8","v":0},null,{"$f":"'Проект 2'!C8","v":0},null,null,{"$f":"'Проект 2'!E8","v":0},null,null,null,{"$f":"'Проект 4'!B8","v":3},null,null,null,null,null,{"$f":"'Проект 5 (2)'!B8","v":3}]
["Себестоимость товара",{"$f":"B8","v":1},{"$f":"'Проект 5'!F9","v":0},{"$f":"'Проект 1'!B9","v":1},null,null,{"$f":"'Проект 2'!B9+'Проект 4'!E9+'Проект 5'!C9","v":1},{"$f":"'Проект 3'!C9+'Проект 5'!B9","v":1},{"$f":"'Проект 1'!C9+'Проект 2'!F9+'Проект 5'!E9","v":0},{"$f":"'Проект 1'!D9","v":0},null,null,null,null,null,null,null,null,null,null,null,null,null,null,null,null,null,null,null,null,null,null,null,null,null,null,null,null,{"$f":"'Проект 1'!F9","v":0},{"$f":"'Проект 5'!D9","v":0},null,null,null,null,null,null,null,null,null,null,null,null,{"$f":"'Проект 2'!D9","v":0},{"$f":"'Проект 3'!F9","v":0},null,{"$f":"'Проект 3'!B9","v":1},null,null,{"$f":"'Проект 4'!F9","v":0},null,{"$f":"'Проект 3'!E9","v":0},null,null,null,null,null,null,null,null,null,null,{"$f":"'Проект 4'!D9","v":0},{"$f":"'Проект 1'!E9","v":0},null,null,null,null,null,null,{"$f":"'Проект 4'!C9","v":0},{"$f":"'Проект 3'!D9","v":0},null,{"$f":"'Проект 2'!C9","v":0},null,null,{"$f":"'Проект 2'!E9","v":0},null,null,null,{"$f":"'Проект 4'!B9","v":1},null,null,null,null,null,{"$f":"'Проект 5 (2)'!B9","v":1}]
["Списание себестоимости товара, поставленного поставщиками внешних подразделений",1,{"$f":"'Проект 5'!F10","v":0},{"$f":"'Проект 1'!B10","v":1},null,null,{"$f":"'Проект 2'!B10+'Проект 4'!E10+'Проект 5'!C10","v":1},{"$f":"'Проект 3'!C10+'Проект 5'!B10","v":1},{"$f":"'Проект 1'!C10+'Проект 2'!F10+'Проект 5'!E10","v":0},{"$f":"'Проект 1'!D10","v":0},null,null,null,null,null,null,null,null,null,null,null,null,null,null,null,null,null,null,null,null,null,null,null,null,null,null,null,null,{"$f":"'Проект 1'!F10","v":0},{"$f":"'Проект 5'!D10","v":9},null,null,null,null,null,null,null,null,null,null,null,null,{"$f":"'Проект 2'!D10","v":0},{"$f":"'Проект 3'!F10","v":0},null,{"$f":"'Проект 3'!B10","v":1},null,null,{"$f":"'Проект 4'!F10","v":0},null,{"$f":"'Проект 3'!E10","v":0},null,null,null,null,null,null,null,null,null,null,{"$f":"'Проект 4'!D10","v":9},{"$f":"'Проект 1'!E10","v":0},null,null,null,null,null,null,{"$f":"'Проект 4'!C10","v":0},{"$f":"'Проект 3'!D10","v":9},null,{"$f":"'Проект 2'!C10","v":0},null,null,{"$f":"'Проект 2'!E10","v":0},null,null,null,{"$f":"'Проект 4'!B10","v":1},null,null,null,null,null,{"$f":"'Проект 5 (2)'!B10","v":1}]
["Себестоимость услуг",{"$f":"B10+B11","v":2},{"$f":"'Проект 5'!F11","v":0},{"$f":"'Проект 1'!B11","v":2},null,null,{"$f":"'Проект 2'!B11+'Проект 4'!E11+'Проект 5'!C11","v":2},{"$f":"'Проект 3'!C11+'Проект 5'!B11","v":2},{"$f":"'Проект 1'!C11+'Проект 2'!F11+'Проект 5'!E11","v":0},{"$f":"'Проект 1'!D11","v":0},null,null,null,null,null,null,null,null,null,null,null,null,null,null,null,null,null,null,null,null,null,null,null,null,null,null,null,null,{"$f":"'Проект 1'!F11","v":0},{"$f":"'Проект 5'!D11","v":0},null,null,null,null,null,null,null,null,null,null,null,null,{"$f":"'Проект 2'!D11","v":0},{"$f":"'Проект 3'!F11","v":0},null,{"$f":"'Проект 3'!B11","v":2},null,null,{"$f":"'Проект 4'!F11","v":0},null,{"$f":"'Проект 3'!E11","v":0},null,null,null,null,null,null,null,null,null,null,{"$f":"'Проект 4'!D11","v":0},{"$f":"'Проект 1'!E11","v":0},null,null,null,null,null,null,{"$f":"'Проект 4'!C11","v":0},{"$f":"'Проект 3'!D11","v":0},null,{"$f":"'Проект 2'!C11","v":0},null,null,{"$f":"'Проект 2'!E11","v":0},null,null,null,{"$f":"'Проект 4'!B11","v":2},null,null,null,null,null,{"$f":"'Проект 5 (2)'!B11","v":2}]
["Списание стоимости материалы и зип",1,{"$f":"'Проект 5'!F12","v":0},{"$f":"'Проект 1'!B12","v":1},null,null,{"$f":"'Проект 2'!B12+'Проект 4'!E12+'Проект 5'!C12","v":1},{"$f":"'Проект 3'!C12+'Проект 5'!B12","v":1},{"$f":"'Проект 1'!C12+'Проект 2'!F12+'Проект 5'!E12","v":0},{"$f":"'Проект 1'!D12","v":0},null,null,null,null,null,null,null,null,null,null,null,null,null,null,null,null,null,null,null,null,null,null,null,null,null,null,null,null,{"$f":"'Проект 1'!F12","v":0},{"$f":"'Проект 5'!D12","v":0},null,null,null,null,null,null,null,null,null,null,null,null,{"$f":"'Проект 2'!D12","v":0},{"$f":"'Проект 3'!F12","v":0},null,{"$f":"'Проект 3'!B12","v":1},null,null,{"$f":"'Проект 4'!F12","v":0},null,{"$f":"'Проект 3'!E12","v":0},null,null,null,null,null,null,null,null,null,null,{"$f":"'Проект 4'!D12","v":0},{"$f":"'Проект 1'!E12","v":0},null,null,null,null,null,null,{"$f":"'Проект 4'!C12","v":0},{"$f":"'Проект 3'!D12","v":0},null,{"$f":"'Проект 2'!C12","v":0},null,null,{"$f":"'Проект 2'!E12","v":0},null,null,null,{"$f":"'Проект 4'!B12","v":1},null,null,null,null,null,{"$f":"'Проект 5 (2)'!B12","v":1}]
["Списание услуги субподрядчиков",1,{"$f":"'Проект 5'!F13","v":0},{"$f":"'Проект 1'!B13","v":1},null,null,{"$f":"'Проект 2'!B13+'Проект 4'!E13+'Проект 5'!C13","v":1},{"$f":"'Проект 3'!C13+'Проект 5'!B13","v":1},{"$f":"'Проект 1'!C13+'Проект 2'!F13+'Проект 5'!E13","v":0},{"$f":"'Проект 1'!D13","v":0},null,null,null,null,null,null,null,null,null,null,null,null,null,null,null,null,null,null,null,null,null,null,null,null,null,null,null,null,{"$f":"'Проект 1'!F13","v":0},{"$f":"'Проект 5'!D13","v":0},null,null,null,null,null,null,null,null,null,null,null,null,{"$f":"'Проект 2'!D13","v":0},{"$f":"'Проект 3'!F13","v":0},null,{"$f":"'Проект 3'!B13","v":1},null,null,{"$f":"'Проект 4'!F13","v":0},null,{"$f":"'Проект 3'!E13","v":0},null,null,null,null,null,null,null,null,null,null,{"$f":"'Проект 4'!D13","v":0},{"$f":"'Проект 1'!E13","v":0},null,null,null,null,null,null,{"$f":"'Проект 4'!C13","v":0},{"$f":"'Проект 3'!D13","v":0},null,{"$f":"'Проект 2'!C13","v":0},null,null,{"$f":"'Проект 2'!E13","v":0},null,null,null,{"$f":"'Проект 4'!B13","v":1},null,null,null,null,null,{"$f":"'Проект 5 (2)'!B13","v":1}]
["Расходы на оплату труда производства",{"$f":"B13+B14+B15+B16+B17+B18+B19+B20","v":8},{"$f":"'Проект 5'!F14","v":0},{"$f":"'Проект 1'!B14","v":8},null,null,{"$f":"'Проект 2'!B14+'Проект 4'!E14+'Проект 5'!C14","v":8},{"$f":"'Проект 3'!C14+'Проект 5'!B14","v":8},{"$f":"'Проект 1'!C14+'Проект 2'!F14+'Проект 5'!E14","v":0},{"$f":"'Проект 1'!D14","v":0},null,null,null,null,null,null,null,null,null,null,null,null,null,null,null,null,null,null,null,null,null,null,null,null,null,null,null,null,{"$f":"'Проект 1'!F14","v":0},{"$f":"'Проект 5'!D14","v":0},null,null,null,null,null,null,null,null,null,null,null,null,{"$f":"'Проект 2'!D14","v":0},{"$f":"'Проект 3'!F14","v":0},null,{"$f":"'Проект 3'!B14","v":8},null,null,{"$f":"'Проект 4'!F14","v":0},null,{"$f":"'Проект 3'!E14","v":0},null,null,null,null,null,null,null,null,null,null,{"$f":"'Проект 4'!D14","v":0},{"$f":"'Проект 1'!E14","v":0},null,null,null,null,null,null,{"$f":"'Проект 4'!C14","v":0},{"$f":"'Проект 3'!D14","v":0},null,{"$f":"'Проект 2'!C14","v":0},null,null,{"$f":"'Проект 2'!E14","v":0},null,null,null,{"$f":"'Проект 4'!B14","v":8},null,null,null,null,null,{"$f":"'Проект 5 (2)'!B14","v":8}]
["Заработная плата сотрудников производства",1,{"$f":"'Проект 5'!F15","v":0},{"$f":"'Проект 1'!B15","v":1},null,null,{"$f":"'Проект 2'!B15+'Проект 4'!E15+'Проект 5'!C15","v":1},{"$f":"'Проект 3'!C15+'Проект 5'!B15","v":1},{"$f":"'Проект 1'!C15+'Проект 2'!F15+'Проект 5'!E15","v":0},{"$f":"'Проект 1'!D15","v":0},null,null,null,null,null,null,null,null,null,null,null,null,null,null,null,null,null,null,null,null,null,null,null,null,null,null,null,null,{"$f":"'Проект 1'!F15","v":0},{"$f":"'Проект 5'!D15","v":0},null,null,null,null,null,null,null,null,null,null,null,null,{"$f":"'Проект 2'!D15","v":0},{"$f":"'Проект 3'!F15","v":0},null,{"$f":"'Проект 3'!B15","v":1},null,null,{"$f":"'Проект 4'!F15","v":0},null,{"$f":"'Проект 3'!E15","v":0},null,null,null,null,null,null,null,null,null,null,{"$f":"'Проект 4'!D15","v":0},{"$f":"'Проект 1'!E15","v":0},null,null,null,null,null,null,{"$f":"'Проект 4'!C15","v":0},{"$f":"'Проект 3'!D15","v":0},null,{"$f":"'Проект 2'!C15","v":0},null,null,{"$f":"'Проект 2'!E15","v":0},null,null,null,{"$f":"'Проект 4'!B15","v":1},null,null,null,null,null,{"$f":"'Проект 5 (2)'!B15","v":1}]
["Отчисления с ФОТ",1,{"$f":"'Проект 5'!F16","v":0},{"$f":"'Проект 1'!B16","v":1},null,null,{"$f":"'Проект 2'!B16+'Проект 4'!E16+'Проект 5'!C16","v":1},{"$f":"'Проект 3'!C16+'Проект 5'!B16","v":1},{"$f":"'Проект 1'!C16+'Проект 2'!F16+'Проект 5'!E16","v":0},{"$f":"'Проект 1'!D16","v":0},null,null,null,null,null,null,null,null,null,null,null,null,null,null,null,null,null,null,null,null,null,null,null,null,null,null,null,null,{"$f":"'Проект 1'!F16","v":0},{"$f":"'Проект 5'!D16","v":0},null,null,null,null,null,null,null,null,null,null,null,null,{"$f":"'Проект 2'!D16","v":0},{"$f":"'Проект 3'!F16","v":0},null,{"$f":"'Проект 3'!B16","v":1},null,null,{"$f":"'Проект 4'!F16","v":0},null,{"$f":"'Проект 3'!E16","v":0},null,null,null,null,null,null,null,null,null,null,{"$f":"'Проект 4'!D16","v":0},{"$f":"'Проект 1'!E16","v":0},null,null,null,null,null,null,{"$f":"'Проект 4'!C16","v":0},{"$f":"'Проект 3'!D16","v":0},null,{"$f":"'Проект 2'!C16","v":0},null,null,{"$f":"'Проект 2'!E16","v":0},null,null,null,{"$f":"'Проект 4'!B16","v":1},null,null,null,null,null,{"$f":"'Проект 5 (2)'!B16","v":1}]
["Расходы на использование личного транспорта для служебных целей",1,{"$f":"'Проект 5'!F17","v":0},{"$f":"'Проект 1'!B17","v":1},null,null,{"$f":"'Проект 2'!B17+'Проект 4'!E17+'Проект 5'!C17","v":1},{"$f":"'Проект 3'!C17+'Проект 5'!B17","v":1},{"$f":"'Проект 1'!C17+'Проект 2'!F17+'Проект 5'!E17","v":0},{"$f":"'Проект 1'!D17","v":0},null,null,null,null,null,null,null,null,null,null,null,null,null,null,null,null,null,null,null,null,null,null,null,null,null,null,null,null,{"$f":"'Проект 1'!F17","v":0},{"$f":"'Проект 5'!D17","v":0},null,null,null,null,null,null,null,null,null,null,null,null,{"$f":"'Проект 2'!D17","v":0},{"$f":"'Проект 3'!F17","v":0},null,{"$f":"'Проект 3'!B17","v":1},null,null,{"$f":"'Проект 4'!F17","v":0},null,{"$f":"'Проект 3'!E17","v":0},null,null,null,null,null,null,null,null,null,null,{"$f":"'Проект 4'!D17","v":0},{"$f":"'Проект 1'!E17","v":0},null,null,null,null,null,null,{"$f":"'Проект 4'!C17","v":0},{"$f":"'Проект 3'!D17","v":0},null,{"$f":"'Проект 2'!C17","v":0},null,null,{"$f":"'Проект 2'!E17","v":0},null,null,null,{"$f":"'Проект 4'!B17","v":1},null,null,null,null,null,{"$f":"'Проект 5 (2)'!B17","v":1}]
["Расходы на оплату командировочных",1,{"$f":"'Проект 5'!F18","v":0},{"$f":"'Проект 1'!B18","v":1},null,null,{"$f":"'Проект 2'!B18+'Проект 4'!E18+'Проект 5'!C18","v":1},{"$f":"'Проект 3'!C18+'Проект 5'!B18","v":1},{"$f":"'Проект 1'!C18+'Проект 2'!F18+'Проект 5'!E18","v":0},{"$f":"'Проект 1'!D18","v":0},null,null,null,null,null,null,null,null,null,null,null,null,null,null,null,null,null,null,null,null,null,null,null,null,null,null,null,null,{"$f":"'Проект 1'!F18","v":0},{"$f":"'Проект 5'!D18","v":0},null,null,null,null,null,null,null,null,null,null,null,null,{"$f":"'Проект 2'!D18","v":0},{"$f":"'Проект 3'!F18","v":0},null,{"$f":"'Проект 3'!B18","v":1},null,null,{"$f":"'Проект 4'!F18","v":0},null,{"$f":"'Проект 3'!E18","v":0},null,null,null,null,null,null,null,null,null,null,{"$f":"'Проект 4'!D18","v":0},{"$f":"'Проект 1'!E18","v":0},null,null,null,null,null,null,{"$f":"'Проект 4'!C18","v":0},{"$f":"'Проект 3'!D18","v":0},null,{"$f":"'Проект 2'!C18","v":0},null,null,{"$f":"'Проект 2'!E18","v":0},null,null,null,{"$f":"'Проект 4'!B18","v":1},null,null,null,null,null,{"$f":"'Проект 5 (2)'!B18","v":1}]
["Транспортные расходы на ГСМ",1,{"$f":"'Проект 5'!F19","v":0},{"$f":"'Проект 1'!B19","v":1},null,null,{"$f":"'Проект 2'!B19+'Проект 4'!E19+'Проект 5'!C19","v":1},{"$f":"'Проект 3'!C19+'Проект 5'!B19","v":1},{"$f":"'Проект 1'!C19+'Проект 2'!F19+'Проект 5'!E19","v":0},{"$f":"'Проект 1'!D19","v":0},null,null,null,null,null,null,null,null,null,null,null,null,null,null,null,null,null,null,null,null,null,null,null,null,null,null,null,null,{"$f":"'Проект 1'!F19","v":0},{"$f":"'Проект 5'!D19","v":0},null,null,null,null,null,null,null,null,null,null,null,null,{"$f":"'Проект 2'!D19","v":0},{"$f":"'Проект 3'!F19","v":0},null,{"$f":"'Проект 3'!B19","v":1},null,null,{"$f":"'Проект 4'!F19","v":0},null,{"$f":"'Проект 3'!E19","v":0},null,null,null,null,null,null,null,null,null,null,{"$f":"'Проект 4'!D19","v":0},{"$f":"'Проект 1'!E19","v":0},null,null,null,null,null,null,{"$f":"'Проект 4'!C19","v":0},{"$f":"'Проект 3'!D19","v":0},null,{"$f":"'Проект 2'!C19","v":0},null,null,{"$f":"'Проект 2'!E19","v":0},null,null,null,{"$f":"'Проект 4'!B19","v":1},null,null,null,null,null,{"$f":"'Проект 5 (2)'!B19","v":1}]
["Расходы на оплату претензий",1,{"$f":"'Проект 5'!F20","v":0},{"$f":"'Проект 1'!B20","v":1},null,null,{"$f":"'Проект 2'!B20+'Проект 4'!E20+'Проект 5'!C20","v":1},{"$f":"'Проект 3'!C20+'Проект 5'!B20","v":1},{"$f":"'Проект 1'!C20+'Проект 2'!F20+'Проект 5'!E20","v":0},{"$f":"'Проект 1'!D20","v":0},null,null,null,null,null,null,null,null,null,null,null,null,null,null,null,null,null,null,null,null,null,null,null,null,null,null,null,null,{"$f":"'Проект 1'!F20","v":0},{"$f":"'Проект 5'!D20","v":0},null,null,null,null,null,null,null,null,null,null,null,null,{"$f":"'Проект 2'!D20","v":0},{"$f":"'Проект 3'!F20","v":0},null,{"$f":"'Проект 3'!B20","v":1},null,null,{"$f":"'Проект 4'!F20","v":0},null,{"$f":"'Проект 3'!E20","v":0},null,null,null,null,null,null,null,null,null,null,{"$f":"'Проект 4'!D20","v":0},{"$f":"'Проект 1'!E20","v":0},null,null,null,null,null,null,{"$f":"'Проект 4'!C20","v":0},{"$f":"'Проект 3'!D20","v":0},null,{"$f":"'Проект 2'!C20","v":0},null,null,{"$f":"'Проект 2'!E20","v":0},null,null,null,{"$f":"'Проект 4'!B20","v":1},null,null,null,null,null,{"$f":"'Проект 5 (2)'!B20","v":1}]
["Аренда производства",1,{"$f":"'Проект 5'!F21","v":0},{"$f":"'Проект 1'!B21","v":1},null,null,{"$f":"'Проект 2'!B21+'Проект 4'!E21+'Проект 5'!C21","v":1},{"$f":"'Проект 3'!C21+'Проект 5'!B21","v":1},{"$f":"'Проект 1'!C21+'Проект 2'!F21+'Проект 5'!E21","v":0},{"$f":"'Проект 1'!D21","v":0},null,null,null,null,null,null,null,null,null,null,null,null,null,null,null,null,null,null,null,null,null,null,null,null,null,null,null,null,{"$f":"'Проект 1'!F21","v":0},{"$f":"'Проект 5'!D21","v":0},null,null,null,null,null,null,null,null,null,null,null,null,{"$f":"'Проект 2'!D21","v":0},{"$f":"'Проект 3'!F21","v":0},null,{"$f":"'Проект 3'!B21","v":1},null,null,{"$f":"'Проект 4'!F21","v":0},null,{"$f":"'Проект 3'!E21","v":0},null,null,null,null,null,null,null,null,null,null,{"$f":"'Проект 4'!D21","v":0},{"$f":"'Проект 1'!E21","v":0},null,null,null,null,null,null,{"$f":"'Проект 4'!C21","v":0},{"$f":"'Проект 3'!D21","v":0},null,{"$f":"'Проект 2'!C21","v":0},null,null,{"$f":"'Проект 2'!E21","v":0},null,null,null,{"$f":"'Проект 4'!B21","v":1},null,null,null,null,null,{"$f":"'Проект 5 (2)'!B21","v":1}]
["Расходы на разработку и поддержку программного обеспечения",1,{"$f":"'Проект 5'!F22","v":0},{"$f":"'Проект 1'!B22","v":1},null,null,{"$f":"'Проект 2'!B22+'Проект 4'!E22+'Проект 5'!C22","v":1},{"$f":"'Проект 3'!C22+'Проект 5'!B22","v":1},{"$f":"'Проект 1'!C22+'Проект 2'!F22+'Проект 5'!E22","v":0},{"$f":"'Проект 1'!D22","v":0},null,null,null,null,null,null,null,null,null,null,null,null,null,null,null,null,null,null,null,null,null,null,null,null,null,null,null,null,{"$f":"'Проект 1'!F22","v":0},{"$f":"'Проект 5'!D22","v":0},null,null,null,null,null,null,null,null,null,null,null,null,{"$f":"'Проект 2'!D22","v":0},{"$f":"'Проект 3'!F22","v":0},null,{"$f":"'Проект 3'!B22","v":1},null,null,{"$f":"'Проект 4'!F22","v":0},null,{"$f":"'Проект 3'!E22","v":0},null,null,null,null,null,null,null,null,null,null,{"$f":"'Проект 4'!D22","v":0},{"$f":"'Проект 1'!E22","v":0},null,null,null,null,null,null,{"$f":"'Проект 4'!C22","v":0},{"$f":"'Проект 3'!D22","v":0},null,{"$f":"'Проект 2'!C22","v":0},null,null,{"$f":"'Проект 2'!E22","v":0},null,null,null,{"$f":"'Проект 4'!B22","v":1},null,null,null,null,null,{"$f":"'Проект 5 (2)'!B22","v":1}]
["Прочие производственные расходы",{"$f":"B22+B23+B24+B25+B26","v":5},{"$f":"'Проект 5'!F23","v":0},{"$f":"'Проект 1'!B23","v":5},null,null,{"$f":"'Проект 2'!B23+'Проект 4'!E23+'Проект 5'!C23","v":5},{"$f":"'Проект 3'!C23+'Проект 5'!B23","v":5},{"$f":"'Проект 1'!C23+'Проект 2'!F23+'Проект 5'!E23","v":0},{"$f":"'Проект 1'!D23","v":0},null,null,null,null,null,null,null,null,null,null,null,null,null,null,null,null,null,null,null,null,null,null,null,null,null,null,null,null,{"$f":"'Проект 1'!F23","v":0},{"$f":"'Проект 5'!D23","v":0},null,null,null,null,null,null,null,null,null,null,null,null,{"$f":"'Проект 2'!D23","v":0},{"$f":"'Проект 3'!F23","v":0},null,{"$f":"'Проект 3'!B23","v":5},null,null,{"$f":"'Проект 4'!F23","v":0},null,{"$f":"'Проект 3'!E23","v":0},null,null,null,null,null,null,null,null,null,null,{"$f":"'Проект 4'!D23","v":0},{"$f":"'Проект 1'!E23","v":0},null,null,null,null,null,null,{"$f":"'Проект 4'!C23","v":0},{"$f":"'Проект 3'!D23","v":0},null,{"$f":"'Проект 2'!C23","v":0},null,null,{"$f":"'Проект 2'!E23","v":0},null,null,null,{"$f":"'Проект 4'!B23","v":5},null,null,null,null,null,{"$f":"'Проект 5 (2)'!B23","v":5}]
["Возврат покупателю/Маркетинговые расходы",1,{"$f":"'Проект 5'!F24","v":0},{"$f":"'Проект 1'!B24","v":1},null,null,{"$f":"'Проект 2'!B24+'Проект 4'!E24+'Проект 5'!C24","v":1},{"$f":"'Проект 3'!C24+'Проект 5'!B24","v":1},{"$f":"'Проект 1'!C24+'Проект 2'!F24+'Проект 5'!E24","v":0},{"$f":"'Проект 1'!D24","v":0},null,null,null,null,null,null,null,null,null,null,null,null,null,null,null,null,null,null,null,null,null,null,null,null,null,null,null,null,{"$f":"'Проект 1'!F24","v":0},{"$f":"'Проект 5'!D24","v":0},null,null,null,null,null,null,null,null,null,null,null,null,{"$f":"'Проект 2'!D24","v":0},{"$f":"'Проект 3'!F24","v":0},null,{"$f":"'Проект 3'!B24","v":1},null,null,{"$f":"'Проект 4'!F24","v":0},null,{"$f":"'Проект 3'!E24","v":0},null,null,null,null,null,null,null,null,null,null,{"$f":"'Проект 4'!D24","v":0},{"$f":"'Проект 1'!E24","v":0},null,null,null,null,null,null,{"$f":"'Проект 4'!C24","v":0},{"$f":"'Проект 3'!D24","v":0},null,{"$f":"'Проект 2'!C24","v":0},null,null,{"$f":"'Проект 2'!E24","v":0},null,null,null,{"$f":"'Проект 4'!B24","v":1},null,null,null,null,null,{"$f":"'Проект 5 (2)'!B24","v":1}]
["Административные расходы",1,{"$f":"'Проект 5'!F25","v":0},{"$f":"'Проект 1'!B25","v":1},null,null,{"$f":"'Проект 2'!B25+'Проект 4'!E25+'Проект 5'!C25","v":1},{"$f":"'Проект 3'!C25+'Проект 5'!B25","v":1},{"$f":"'Проект 1'!C25+'Проект 2'!F25+'Проект 5'!E25","v":0},{"$f":"'Проект 1'!D25","v":0},null,null,null,null,null,null,null,null,null,null,null,null,null,null,null,null,null,null,null,null,null,null,null,null,null,null,null,null,{"$f":"'Проект 1'!F25","v":0},{"$f":"'Проект 5'!D25","v":0},null,null,null,null,null,null,null,null,null,null,null,null,{"$f":"'Проект 2'!D25","v":0},{"$f":"'Проект 3'!F25","v":0},null,{"$f":"'Проект 3'!B25","v":1},null,null,{"$f":"'Проект 4'!F25","v":0},null,{"$f":"'Проект 3'!E25","v":0},null,null,null,null,null,null,null,null,null,null,{"$f":"'Проект 4'!D25","v":0},{"$f":"'Проект 1'!E25","v":0},null,null,null,null,null,null,{"$f":"'Проект 4'!C25","v":0},{"$f":"'Проект 3'!D25","v":0},null,{"$f":"'Проект 2'!C25","v":0},null,null,{"$f":"'Проект 2'!E25","v":0},null,null,null,{"$f":"'Проект 4'!B25","v":1},null,null,null,null,null,{"$f":"'Проект 5 (2)'!B25","v":1}]
["Заработная плата сотрудников Администрации",1,{"$f":"'Проект 5'!F26","v":0},{"$f":"'Проект 1'!B26","v":1},null,null,{"$f":"'Проект 2'!B26+'Проект 4'!E26+'Проект 5'!C26","v":1},{"$f":"'Проект 3'!C26+'Проект 5'!B26","v":1},{"$f":"'Проект 1'!C26+'Проект 2'!F26+'Проект 5'!E26","v":0},{"$f":"'Проект 1'!D26","v":0},null,null,null,null,null,null,null,null,null,null,null,null,null,null,null,null,null,null,null,null,null,null,null,null,null,null,null,null,{"$f":"'Проект 1'!F26","v":0},{"$f":"'Проект 5'!D26","v":0},null,null,null,null,null,null,null,null,null,null,null,null,{"$f":"'Проект 2'!D26","v":0},{"$f":"'Проект 3'!F26","v":0},null,{"$f":"'Проект 3'!B26","v":1},null,null,{"$f":"'Проект 4'!F26","v":0},null,{"$f":"'Проект 3'!E26","v":0},null,null,null,null,null,null,null,null,null,null,{"$f":"'Проект 4'!D26","v":0},{"$f":"'Проект 1'!E26","v":0},null,null,null,null,null,null,{"$f":"'Проект 4'!C26","v":0},{"$f":"'Проект 3'!D26","v":0},null,{"$f":"'Проект 2'!C26","v":0},null,null,{"$f":"'Проект 2'!E26","v":0},null,null,null,{"$f":"'Проект 4'!B26","v":1},null,null,null,null,null,{"$f":"'Проект 5 (2)'!B26","v":1}]
["Расходы на услуги связи",1,{"$f":"'Проект 5'!F27","v":0},{"$f":"'Проект 1'!B27","v":1},null,null,{"$f":"'Проект 2'!B27+'Проект 4'!E27+'Проект 5'!C27","v":1},{"$f":"'Проект 3'!C27+'Проект 5'!B27","v":1},{"$f":"'Проект 1'!C27+'Проект 2'!F27+'Проект 5'!E27","v":0},{"$f":"'Проект 1'!D27","v":0},null,null,null,null,null,null,null,null,null,null,null,null,null,null,null,null,null,null,null,null,null,null,null,null,null,null,null,null,{"$f":"'Проект 1'!F27","v":0},{"$f":"'Проект 5'!D27","v":0},null,null,null,null,null,null,null,null,null,null,null,null,{"$f":"'Проект 2'!D27","v":0},{"$f":"'Проект 3'!F27","v":0},null,{"$f":"'Проект 3'!B27","v":1},null,null,{"$f":"'Проект 4'!F27","v":0},null,{"$f":"'Проект 3'!E27","v":0},null,null,null,null,null,null,null,null,null,null,{"$f":"'Проект 4'!D27","v":0},{"$f":"'Проект 1'!E27","v":0},null,null,null,null,null,null,{"$f":"'Проект 4'!C27","v":0},{"$f":"'Проект 3'!D27","v":0},null,{"$f":"'Проект 2'!C27","v":0},null,null,{"$f":"'Проект 2'!E27","v":0},null,null,null,{"$f":"'Проект 4'!B27","v":1},null,null,null,null,null,{"$f":"'Проект 5 (2)'!B27","v":1}]
["Расходы на почтовые (курьерские) услуги",1,{"$f":"'Проект 5'!F28","v":0},{"$f":"'Проект 1'!B28","v":1},null,null,{"$f":"'Проект 2'!B28+'Проект 4'!E28+'Проект 5'!C28","v":1},{"$f":"'Проект 3'!C28+'Проект 5'!B28","v":1},{"$f":"'Проект 1'!C28+'Проект 2'!F28+'Проект 5'!E28","v":0},{"$f":"'Проект 1'!D28","v":0},null,null,null,null,null,null,null,null,null,null,null,null,null,null,null,null,null,null,null,null,null,null,null,null,null,null,null,null,{"$f":"'Проект 1'!F28","v":0},{"$f":"'Проект 5'!D28","v":0},null,null,null,null,null,null,null,null,null,null,null,null,{"$f":"'Проект 2'!D28","v":0},{"$f":"'Проект 3'!F28","v":0},null,{"$f":"'Проект 3'!B28","v":1},null,null,{"$f":"'Проект 4'!F28","v":0},null,{"$f":"'Проект 3'!E28","v":0},null,null,null,null,null,null,null,null,null,null,{"$f":"'Проект 4'!D28","v":0},{"$f":"'Проект 1'!E28","v":0},null,null,null,null,null,null,{"$f":"'Проект 4'!C28","v":0},{"$f":"'Проект 3'!D28","v":0},null,{"$f":"'Проект 2'!C28","v":0},null,null,{"$f":"'Проект 2'!E28","v":0},null,null,null,{"$f":"'Проект 4'!B28","v":1},null,null,null,null,null,{"$f":"'Проект 5 (2)'!B28","v":1}]

{"sheet":"Справочник","index":1,"n_rows":95,"n_cols":3,"rows_kept":95,"cut":false,"hidden":false,"merged":[]}
["Регионы","Проект","Принадлежность"]
["Республика Адыгея","Проект 1","ПЦ"]
["Республика Башкортостан","Проект 2","СП"]
["Республика Бурятия","Проект 3"]
["Республика Алтай","Проект 4"]
["Республика Дагестан","Проект 5"]
["Республика Ингушетия","Проект 6"]
["Кабардино-Балкарская Республика","Проект 7"]
["Республика Калмыкия","Проект 8"]
["Республика Карачаево-Черкессия","Проект 9"]
["Республика Карелия","Проект 10"]
["Республика Коми","Проект 11"]
["Республика Марий Эл","Проект 12"]
["Республика Мордовия","Проект 13"]
["Республика Саха (Якутия)","Проект 14"]
["Республика Северная Осетия-Алания","Проект 15"]
["Республика Татарстан"]
["Республика Тыва"]
["Удмуртская Республика"]
["Республика Хакасия"]
["Чеченская республика"]
["Чувашская Республика"]
["Алтайский край"]
["Краснодарский край"]
["Красноярский край"]
["Приморский край"]
["Ставропольский край"]
["Хабаровский край"]
["Амурская область"]
["Архангельская область"]
["Астраханская область"]
["Белгородская область"]
["Брянская область"]
["Владимирская область"]
["Волгоградская область"]
["Вологодская область"]
["Воронежская область"]
["Ивановская область"]
["Иркутская область"]
["Калининградская область"]
["Калужская область"]
["Камчатский край"]
["Камчатская область"]
["Кемеровская область"]
["Кировская область"]
["Костромская область"]
["Курганская область"]
["Курская область"]
["Ленинградская область"]
["Липецкая область"]
["Магаданская область"]
["Московская область"]
["Мурманская область"]
["Нижегородская область"]
["Новгородская область"]
["Новосибирская область"]
["Омская область"]
["Оренбургская область"]
["Орловская область"]
["Пензенская область"]
["Пермский край"]
["Пермская область"]
["Псковская область"]
["Ростовская область"]
["Рязанская область"]
["Самарская область"]
["Саратовская область"]
["Сахалинская область"]
["Свердловская область"]
["Смоленская область"]
["Тамбовская область"]
["Тверская область"]
["Томская область"]
["Тульская область"]
["Тюменская область"]
["Ульяновская область"]
["Челябинская область"]
["Забайкальский край"]
["Читинская область"]
["Ярославская область"]
["г. Москва"]
["г. Санкт-Петербург"]
["Еврейская автономная область"]
["Агинский Бурятский автономный округ"]
["Коми-Пермяцкий автономный округ"]
["Корякский автономный округ"]
["Ненецкий автономный округ"]
["Таймырский (Долгано-Ненецкий) автономный округ"]
["Усть-Ордынский Бурятский автономный округ"]
["Ханты-Мансийский автономный округ - Югра"]
["Чукотский автономный округ"]
["Эвенкийский автономный округ"]
["Ямало-Ненецкий автономный округ"]
["Чеченская Республика"]
["Запорожская область"]

{"sheet":"Проект 1","index":2,"n_rows":28,"n_cols":7,"rows_kept":28,"cut":false,"hidden":false,"merged":[[0,6,2,6]]}
["Проект","Проект 1",null,null,null,null,"ИТОГО"]
["Регион","Республика Башкортостан","Кабардино-Балкарская Республика","Республика Калмыкия","Тверская область","Ивановская область"]
["Принадлежность"]
["Выручка ИТОГ",{"$f":"B5+B6","v":2},{"$f":"C5+C6","v":0},0,0,0,{"$f":"B4+C4+D4+E4+F4","v":2}]
["Доходы от продажи товаров",1,null,null,null,null,{"$f":"B5+C5+D5+E5+F5","v":1}]
["Доходы от продажи услуг",1,null,null,null,null,1]
["Расходы ИТОГ",{"$f":"B8+B11+B14+B23","v":18},{"$f":"C8+C11+C14+C23","v":0},0,0,0,18]
["Производственные расходы",{"$f":"B9+B11","v":3},{"$f":"C9+C11","v":0},0,0,0,3]
["Себестоимость товара",{"$f":"B10","v":1},null,null,null,null,1]
["Списание себестоимости товара, поставленного поставщиками внешних подразделений",1,null,null,null,null,1]
["Себестоимость услуг",{"$f":"B12+B13","v":2},null,null,null,null,2]
["Списание стоимости материалы и зип",1,null,null,null,null,1]
["Списание услуги субподрядчиков",1,null,null,null,null,1]
["Расходы на оплату труда производства",{"$f":"B15+B16+B17+B18+B19+B20+B21+B22","v":8},{"$f":"C15+C16+C17+C18+C19+C20+C21+C22","v":0},0,0,0,8]
["Заработная плата сотрудников производства",1,null,null,null,null,1]
["Отчисления с ФОТ",1,null,null,null,null,1]
["Расходы на использование личного транспорта для служебных целей",1,null,null,null,null,1]
["Расходы на оплату командировочных",1,null,null,null,null,1]
["Транспортные расходы на ГСМ",1,null,null,null,null,1]
["Расходы на оплату претензий",1,null,null,null,null,1]
["Аренда производства",1,null,null,null,null,1]
["Расходы на разработку и поддержку программного обеспечения",1,null,null,null,null,1]
["Прочие производственные расходы",{"$f":"B24+B25+B26+B27+B28","v":5},{"$f":"C24+C25+C26+C27+C28","v":0},0,0,0,5]
["Возврат покупателю/Маркетинговые расходы",1,null,null,null,null,1]
["Административные расходы",1,null,null,null,null,1]
["Заработная плата сотрудников Администрации",1,null,null,null,null,1]
["Расходы на услуги связи",1,null,null,null,null,1]
["Расходы на почтовые (курьерские) услуги",1,null,null,null,null,1]

{"sheet":"Проект 2","index":3,"n_rows":28,"n_cols":7,"rows_kept":28,"cut":false,"hidden":false,"merged":[[0,6,2,6]]}
["Проект",null,null,null,null,null,"ИТОГО"]
["Регион","Республика Дагестан","г. Санкт-Петербург","Московская область","Коми-Пермяцкий автономный округ","Кабардино-Балкарская Республика"]
["Принадлежность"]
["Выручка ИТОГ",{"$f":"B5+B6","v":2},{"$f":"C5+C6","v":0},0,0,0,{"$f":"B4+C4+D4+E4+F4","v":2}]
["Доходы от продажи товаров",1,null,null,null,null,{"$f":"B5+C5+D5+E5+F5","v":1}]
["Доходы от продажи услуг",1,null,null,null,null,1]
["Расходы ИТОГ",{"$f":"B8+B11+B14+B23","v":18},{"$f":"C8+C11+C14+C23","v":0},0,0,0,18]
["Производственные расходы",{"$f":"B9+B11","v":3},{"$f":"C9+C11","v":0},0,0,0,3]
["Себестоимость товара",{"$f":"B10","v":1},null,null,null,null,1]
["Списание себестоимости товара, поставленного поставщиками внешних подразделений",1,null,null,null,null,1]
["Себестоимость услуг",{"$f":"B12+B13","v":2},null,null,null,null,2]
["Списание стоимости материалы и зип",1,null,null,null,null,1]
["Списание услуги субподрядчиков",1,null,null,null,null,1]
["Расходы на оплату труда производства",{"$f":"B15+B16+B17+B18+B19+B20+B21+B22","v":8},{"$f":"C15+C16+C17+C18+C19+C20+C21+C22","v":0},0,0,0,8]
["Заработная плата сотрудников производства",1,null,null,null,null,1]
["Отчисления с ФОТ",1,null,null,null,null,1]
["Расходы на использование личного транспорта для служебных целей",1,null,null,null,null,1]
["Расходы на оплату командировочных",1,null,null,null,null,1]
["Транспортные расходы на ГСМ",1,null,null,null,null,1]
["Расходы на оплату претензий",1,null,null,null,null,1]
["Аренда производства",1,null,null,null,null,1]
["Расходы на разработку и поддержку программного обеспечения",1,null,null,null,null,1]
["Прочие производственные расходы",{"$f":"B24+B25+B26+B27+B28","v":5},{"$f":"C24+C25+C26+C27+C28","v":0},0,0,0,5]
["Возврат покупателю/Маркетинговые расходы",1,null,null,null,null,1]
["Административные расходы",1,null,null,null,null,1]
["Заработная плата сотрудников Администрации",1,null,null,null,null,1]
["Расходы на услуги связи",1,null,null,null,null,1]
["Расходы на почтовые (курьерские) услуги",1,null,null,null,null,1]

{"sheet":"Проект 3","index":4,"n_rows":28,"n_cols":7,"rows_kept":28,"cut":false,"hidden":false,"merged":[[0,6,2,6]]}
["Проект",null,null,null,null,null,"ИТОГО"]
["Регион","Новгородская область","Республика Ингушетия","Ярославская область","Пензенская область","Мурманская область"]
["Принадлежность"]
["Выручка ИТОГ",{"$f":"B5+B6","v":2},{"$f":"C5+C6","v":0},0,0,0,{"$f":"B4+C4+D4+E4+F4","v":2}]
["Доходы от продажи товаров",1,null,null,null,null,{"$f":"B5+C5+D5+E5+F5","v":1}]
["Доходы от продажи услуг",1,null,null,null,null,1]
["Расходы ИТОГ",{"$f":"B8+B11+B14+B23","v":18},{"$f":"C8+C11+C14+C23","v":0},0,0,0,18]
["Производственные расходы",{"$f":"B9+B11","v":3},{"$f":"C9+C11","v":0},0,0,0,3]
["Себестоимость товара",{"$f":"B10","v":1},null,null,null,null,1]
["Списание себестоимости товара, поставленного поставщиками внешних подразделений",1,null,9,null,null,10]
["Себестоимость услуг",{"$f":"B12+B13","v":2},null,null,null,null,2]
["Списание стоимости материалы и зип",1,null,null,null,null,1]
["Списание услуги субподрядчиков",1,null,null,null,null,1]
["Расходы на оплату труда производства",{"$f":"B15+B16+B17+B18+B19+B20+B21+B22","v":8},{"$f":"C15+C16+C17+C18+C19+C20+C21+C22","v":0},0,0,0,8]
["Заработная плата сотрудников производства",1,null,null,null,null,1]
["Отчисления с ФОТ",1,null,null,null,null,1]
["Расходы на использование личного транспорта для служебных целей",1,null,null,null,null,1]
["Расходы на оплату командировочных",1,null,null,null,null,1]
["Транспортные расходы на ГСМ",1,null,null,null,null,1]
["Расходы на оплату претензий",1,null,null,null,null,1]
["Аренда производства",1,null,null,null,null,1]
["Расходы на разработку и поддержку программного обеспечения",1,null,null,null,null,1]
["Прочие производственные расходы",{"$f":"B24+B25+B26+B27+B28","v":5},{"$f":"C24+C25+C26+C27+C28","v":0},0,0,0,5]
["Возврат покупателю/Маркетинговые расходы",1,null,null,null,null,1]
["Административные расходы",1,null,null,null,null,1]
["Заработная плата сотрудников Администрации",1,null,null,null,null,1]
["Расходы на услуги связи",1,null,null,null,null,1]
["Расходы на почтовые (курьерские) услуги",1,null,null,null,null,1]

{"sheet":"Проект 4","index":5,"n_rows":28,"n_cols":7,"rows_kept":28,"cut":false,"hidden":false,"merged":[[0,6,2,6]]}
["Проект",null,null,null,null,null,"ИТОГО"]
["Регион","Усть-Ордынский Бурятский автономный округ","Читинская область","Тамбовская область","Республика Дагестан","Оренбургская область"]
["Принадлежность"]
["Выручка ИТОГ",{"$f":"B5+B6","v":2},{"$f":"C5+C6","v":0},0,0,0,{"$f":"B4+C4+D4+E4+F4","v":2}]
["Доходы от продажи товаров",1,null,null,null,null,{"$f":"B5+C5+D5+E5+F5","v":1}]
["Доходы от продажи услуг",1,null,null,null,null,1]
["Расходы ИТОГ",{"$f":"B8+B11+B14+B23","v":18},{"$f":"C8+C11+C14+C23","v":0},0,0,0,18]
["Производственные расходы",{"$f":"B9+B11","v":3},{"$f":"C9+C11","v":0},0,0,0,3]
["Себестоимость товара",{"$f":"B10","v":1},null,null,null,null,1]
["Списание себестоимости товара, поставленного поставщиками внешних подразделений",1,null,9,null,null,10]
["Себестоимость услуг",{"$f":"B12+B13","v":2},null,null,null,null,2]
["Списание стоимости материалы и зип",1,null,null,null,null,1]
["Списание услуги субподрядчиков",1,null,null,null,null,1]
["Расходы на оплату труда производства",{"$f":"B15+B16+B17+B18+B19+B20+B21+B22","v":8},{"$f":"C15+C16+C17+C18+C19+C20+C21+C22","v":0},0,0,0,8]
["Заработная плата сотрудников производства",1,null,null,null,null,1]
["Отчисления с ФОТ",1,null,null,null,null,1]
["Расходы на использование личного транспорта для служебных целей",1,null,null,null,null,1]
["Расходы на оплату командировочных",1,null,null,null,null,1]
["Транспортные расходы на ГСМ",1,null,null,null,null,1]
["Расходы на оплату претензий",1,null,null,null,null,1]
["Аренда производства",1,null,null,null,null,1]
["Расходы на разработку и поддержку программного обеспечения",1,null,null,null,null,1]
["Прочие производственные расходы",{"$f":"B24+B25+B26+B27+B28","v":5},{"$f":"C24+C25+C26+C27+C28","v":0},0,0,0,5]
["Возврат покупателю/Маркетинговые расходы",1,null,null,null,null,1]
["Административные расходы",1,null,null,null,null,1]
["Заработная плата сотрудников Администрации",1,null,null,null,null,1]
["Расходы на услуги связи",1,null,null,null,null,1]
["Расходы на почтовые (курьерские) услуги",1,null,null,null,null,1]

{"sheet":"Проект 5","index":6,"n_rows":28,"n_cols":7,"rows_kept":28,"cut":false,"hidden":false,"merged":[[0,6,2,6]]}
["Проект",null,null,null,null,null,"ИТОГО"]
["Регион","Республика Ингушетия","Республика Дагестан","Иркутская область","Кабардино-Балкарская Республика","Республика Адыгея"]
["Принадлежность"]
["Выручка ИТОГ",{"$f":"B5+B6","v":2},{"$f":"C5+C6","v":0},0,0,0,{"$f":"B4+C4+D4+E4+F4","v":2}]
["Доходы от продажи товаров",1,null,null,null,null,{"$f":"B5+C5+D5+E5+F5","v":1}]
["Доходы от продажи услуг",1,null,null,null,null,1]
["Расходы ИТОГ",{"$f":"B8+B11+B14+B23","v":18},{"$f":"C8+C11+C14+C23","v":0},0,0,0,18]
["Производственные расходы",{"$f":"B9+B11","v":3},{"$f":"C9+C11","v":0},0,0,0,3]
["Себестоимость товара",{"$f":"B10","v":1},null,null,null,null,1]
["Списание себестоимости товара, поставленного поставщиками внешних подразделений",1,null,9,null,null,10]
["Себестоимость услуг",{"$f":"B12+B13","v":2},null,null,null,null,2]
["Списание стоимости материалы и зип",1,null,null,null,null,1]
["Списание услуги субподрядчиков",1,null,null,null,null,1]
["Расходы на оплату труда производства",{"$f":"B15+B16+B17+B18+B19+B20+B21+B22","v":8},{"$f":"C15+C16+C17+C18+C19+C20+C21+C22","v":0},0,0,0,8]
["Заработная плата сотрудников производства",1,null,null,null,null,1]
["Отчисления с ФОТ",1,null,null,null,null,1]
["Расходы на использование личного транспорта для служебных целей",1,null,null,null,null,1]
["Расходы на оплату командировочных",1,null,null,null,null,1]
["Транспортные расходы на ГСМ",1,null,null,null,null,1]
["Расходы на оплату претензий",1,null,null,null,null,1]
["Аренда производства",1,null,null,null,null,1]
["Расходы на разработку и поддержку программного обеспечения",1,null,null,null,null,1]
["Прочие производственные расходы",{"$f":"B24+B25+B26+B27+B28","v":5},{"$f":"C24+C25+C26+C27+C28","v":0},0,0,0,5]
["Возврат покупателю/Маркетинговые расходы",1,null,null,null,null,1]
["Административные расходы",1,null,null,null,null,1]
["Заработная плата сотрудников Администрации",1,null,null,null,null,1]
["Расходы на услуги связи",1,null,null,null,null,1]
["Расходы на почтовые (курьерские) услуги",1,null,null,null,null,1]

{"sheet":"Проект 5 (2)","index":7,"n_rows":28,"n_cols":7,"rows_kept":28,"cut":false,"hidden":false,"merged":[[0,6,2,6]]}
["Проект",null,null,null,null,null,"ИТОГО"]
["Регион","Запорожская область"]
["Принадлежность"]
["Выручка ИТОГ",{"$f":"B5+B6","v":2},{"$f":"C5+C6","v":0},0,0,0,{"$f":"B4+C4+D4+E4+F4","v":2}]
["Доходы от продажи товаров",1,null,null,null,null,{"$f":"B5+C5+D5+E5+F5","v":1}]
["Доходы от продажи услуг",1,null,null,null,null,1]
["Расходы ИТОГ",{"$f":"B8+B11+B14+B23","v":18},{"$f":"C8+C11+C14+C23","v":0},0,0,0,18]
["Производственные расходы",{"$f":"B9+B11","v":3},{"$f":"C9+C11","v":0},0,0,0,3]
["Себестоимость товара",{"$f":"B10","v":1},null,null,null,null,1]
["Списание себестоимости товара, поставленного поставщиками внешних подразделений",1,null,9,null,null,10]
["Себестоимость услуг",{"$f":"B12+B13","v":2},null,null,null,null,2]
["Списание стоимости материалы и зип",1,null,null,null,null,1]
["Списание услуги субподрядчиков",1,null,null,null,null,1]
["Расходы на оплату труда производства",{"$f":"B15+B16+B17+B18+B19+B20+B21+B22","v":8},{"$f":"C15+C16+C17+C18+C19+C20+C21+C22","v":0},0,0,0,8]
["Заработная плата сотрудников производства",1,null,null,null,null,1]
["Отчисления с ФОТ",1,null,null,null,null,1]
["Расходы на использование личного транспорта для служебных целей",1,null,null,null,null,1]
["Расходы на оплату командировочных",1,null,null,null,null,1]
["Транспортные расходы на ГСМ",1,null,null,null,null,1]
["Расходы на оплату претензий",1,null,null,null,null,1]
["Аренда производства",1,null,null,null,null,1]
["Расходы на разработку и поддержку программного обеспечения",1,null,null,null,null,1]
["Прочие производственные расходы",{"$f":"B24+B25+B26+B27+B28","v":5},{"$f":"C24+C25+C26+C27+C28","v":0},0,0,0,5]
["Возврат покупателю/Маркетинговые расходы",1,null,null,null,null,1]
["Административные расходы",1,null,null,null,null,1]
["Заработная плата сотрудников Администрации",1,null,null,null,null,1]
["Расходы на услуги связи",1,null,null,null,null,1]
["Расходы на почтовые (курьерские) услуги",1,null,null,null,null,1]